fUSD/lending_fUSD_20250828
["ID","MTS","AMOUNT","RATE_DAILY","PERIOD"]
[381795200,1756351834534,-69.36793163,0.000178,2]
[381795201,1756351834543,-2405.63565722,0.000178,6]
[381795202,1756351834554,-894.31286743,0.000178,6]
[381795203,1756351834565,-1098.32875187,0.000178,6]
[381795204,1756351834581,-2301.72272348,0.000178,6]
[381795205,1756351834591,-524.11873,0.0001782,2]
[381795206,1756351834600,-194.72792766,0.00017823,2]
[381795207,1756351834610,-6299.07257602,0.00017833,2]
[381795208,1756351834619,-400.0,0.0001784,2]
[381795209,1756351834629,-500.43,0.0001784,2]
[381795210,1756351834638,-400.0,0.0001784,2]
[381795211,1756351834647,-400.0,0.0001784,2]
[381795212,1756351834656,-433.01,0.0001784,2]
[381795213,1756351834665,-1696.01,0.0001784,2]
[381795214,1756351834674,-400.0,0.0001784,2]
[381795215,1756351834683,-400.0,0.0001784,2]
[381795216,1756351834693,-327.01199419,0.0001784,2]
[381795217,1756351834703,-400.0,0.0001784,2]
[381795218,1756351834712,-411.96,0.0001784,2]
[381795219,1756351834721,-400.0,0.0001784,2]
[381795220,1756351834731,-385.69,0.0001784,2]
[381795221,1756351834740,-445.84182658,0.0001784,2]
[381795222,1756351834751,-400.0,0.0001784,2]
[381795223,1756351834764,-400.0,0.0001784,2]
[381795224,1756351834773,-599.0,0.00017841,2]
[381795225,1756351834784,-1575.0,0.00017841,2]
[381795226,1756351834794,-566.0,0.00017841,2]
[381795227,1756351834804,-1298.0,0.00017841,2]
[381795228,1756351834814,-2595.398,0.00017841,2]
[381795229,1756351834824,-2032.0,0.00017841,2]
[381795230,1756351834835,-6148.0,0.00017841,2]
[381795231,1756351834845,-926.0,0.00017841,2]
[381795232,1756351834855,-4156.0,0.00017841,2]
[381795233,1756351834867,-264.0,0.00017844,2]
[381795234,1756351834876,-200.0,0.00017856,2]
[381795235,1756351834886,-217.87,0.00017878,2]
[381795236,1756351834895,-238.6191131,0.00017878,2]
[381795237,1756351834905,-2113.9612,0.00017888,2]
[381795238,1756351834914,-374.72462284,0.00017888,2]
[381795239,1756351834923,-432.19699399,0.0001789,2]
[381795240,1756351834933,-3162.1028921,0.00017893,2]
[381795241,1756351834943,-432.19699399,0.00017895,2]
[381795242,1756351834952,-157.25551726,0.00017897,2]
[381795243,1756351834961,-1699.73225361,0.000179,2]
[381795244,1756351834970,-613.60717033,0.000179,2]
[381795245,1756351834981,-163.19001051,0.000179,2]
[381795246,1756351834992,-2926.90885549,0.000179,2]
[381795247,1756351835001,-8400.0,0.000179,6]
[381795248,1756351835010,-169.49754188,0.000179,2]
[381795249,1756351835020,-432.19699399,0.000179,2]
[381795250,1756351835029,-3385.99860561,0.000179,2]
[381795251,1756351835038,-1012.38593066,0.000179,2]
[381795252,1756351835048,-157.80765906,0.000179,3]
[381795253,1756351835058,-8008.66410041,0.000179,2]
[381795254,1756351835067,-6789.39783951,0.000179,2]
[381795255,1756351835076,-225.0,0.00017906,2]
[381795256,1756351835086,-3371.00858319,0.00017909,2]
[381795257,1756351835149,454.2359,0.00030136,120]
[381795260,1756351838203,-611.09392949,0.00017557,2]
[381795261,1756351838468,-252.00757748,0.00017557,2]
[381795263,1756351838478,-150.0,0.00017788,2]
[381795265,1756351838487,-400.0,0.0001784,2]
[381795267,1756351838496,-1256.0,0.00017841,2]
[381795269,1756351838506,-6824.85362309,0.00017909,2]
[381795271,1756351838516,-2765.2241392,0.00017926,2]
[381795273,1756351838525,-524.11874,0.0001793,2]
[381795274,1756351838534,-6299.07257602,0.00017967,2]
[381795275,1756351838543,-716.0,0.00017973,2]
[381795276,1756351838553,-707.0,0.00017973,2]
[381795277,1756351838562,-501.52487117,0.00017973,2]
[381795278,1756351838571,-500.98208168,0.00017973,2]
[381795279,1756351838580,-501.4357111,0.00017973,2]
[381795280,1756351838590,-501.62114177,0.00017973,2]
[381795281,1756351838600,-500.70894657,0.00017973,2]
[381795282,1756351838610,-500.38222704,0.00017973,2]
[381795283,1756351838620,-460.40636488,0.00017973,2]
[381795433,1756351840274,-152.143571,0.00016367,2]
[381795435,1756351840285,-208.56,0.0001784,2]
[381795437,1756351840294,-15.29642898,0.00017973,2]
[381795447,1756351840383,-24.92096213,0.00017973,2]
[381795449,1756351840392,-257.70531191,0.00017973,2]
[381795465,1756351840541,-243.69425283,0.00017973,2]
[381795467,1756351840550,-21.67074714,0.00017973,2]
[381795704,1756351843348,-392.29490377,0.0001784,2]
[381795705,1756351843360,-7.70509623,0.0001784,2]
[381795706,1756351843369,-511.99643386,0.0001784,2]
[381795707,1756351843379,-157.05765821,0.00017868,2]
[381797082,1756351910621,500.0,0.00028767,120]
[381797083,1756351910902,500.0,0.00028767,120]
[381797084,1756351911248,500.0,0.00028767,120]
[381797085,1756351911491,456.29914219,0.00028767,120]
[381797087,1756351970107,10000.0,0.00030137,120]
[381797088,1756351983128,4300.49,0.00030137,120]
[381797089,1756351984441,-301.19512334,0.00015875,2]
[381797090,1756351986842,-834.09900575,0.00015875,2]
[381797091,1756351988500,-388.70587091,0.00015875,2]
[381797096,1756352270708,-239.31,0.00013699,2]
[381797098,1756352304309,228.48,0.00030136,120]
[381797101,1756352479784,-319.40604555,0.00015875,2]
[381797102,1756352482436,-405.06965461,0.00015875,2]
[381797103,1756352484666,-156.70729984,0.00015875,2]
[381797104,1756352570117,228.0,0.00023,30]
[381797116,1756353031465,7500.0,0.0003013,120]
[381797117,1756353031480,-469.16,0.00016334,2]
[381797118,1756353031781,-30.84,0.00016334,2]
[381797119,1756353031791,-556.3325968,0.00016334,2]
[381797120,1756353031802,-1000.0,0.00016689,2]
[381797121,1756353031812,-178.54,0.0001669,2]
[381797122,1756353031822,-210.0,0.000167,2]
[381797123,1756353031833,-345.29958733,0.00016702,2]
[381797124,1756353031843,-179.70151735,0.00016702,2]
[381797125,1756353031853,-160.0,0.00016703,7]
[381797126,1756353031863,-655.24,0.00016729,3]
[381797127,1756353031873,-235.0,0.00016767,2]
[381797128,1756353031883,-428.88,0.00016806,2]
[381797129,1756353031893,-287.59,0.00016838,2]
[381797130,1756353031904,-168.0,0.00017032,2]
[381797131,1756353031914,-414.68497714,0.00017459,2]
[381797132,1756353031924,-168.0,0.00017461,2]
[381797133,1756353031934,-257.91778498,0.00017489,2]
[381797134,1756353031944,-1200.0,0.00017498,2]
[381797135,1756353031954,-2000.0,0.000175,2]
[381797136,1756353031966,-600.0,0.000175,6]
[381797137,1756353031976,-844.93374113,0.00017517,2]
[381797138,1756353031985,-212.25325354,0.00017517,2]
[381797139,1756353031995,-160.0,0.00017517,2]
[381797140,1756353032005,-409.82097998,0.00017518,2]
[381797141,1756353032017,-168.0,0.00017548,2]
[381797142,1756353032034,-881.46536882,0.00017566,2]
[381797143,1756353032045,-1200.0,0.000176,6]
[381797144,1756353032054,-428.88,0.00017646,2]
[381797145,1756353032064,-1800.0,0.000177,6]
[381797146,1756353032074,-716.08,0.000177,2]
[381797147,1756353032084,-695.26071615,0.00017706,2]
[381797148,1756353032094,-162.47027559,0.00017729,2]
[381797149,1756353032104,-752.13754423,0.0001773,2]
[381797150,1756353032114,-168.0,0.00017731,2]
[381797151,1756353032124,-150.0,0.00017731,2]
[381797152,1756353032134,-527.48952488,0.0001774,2]
[381797153,1756353032144,-8777.8210613,0.0001774,2]
[381797154,1756353032153,-418.62596646,0.0001774,2]
[381797155,1756353032163,-5000.0,0.00017744,2]
[381797156,1756353032174,-8777.82106123,0.0001777,2]
[381797157,1756353032187,-195.42348821,0.00017789,2]
[381797158,1756353032197,-322.6107,0.00017789,2]
[381797159,1756353032208,-151.0,0.00017789,2]
[381797160,1756353032218,-151.0,0.00017789,2]
[381797161,1756353032229,-151.0,0.00017789,2]
[381797162,1756353032239,-695.39793187,0.00017789,2]
[381797163,1756353032248,-151.0,0.00017789,2]
[381797164,1756353032260,-151.0,0.00017789,2]
[381797165,1756353032269,-151.0,0.00017789,2]
[381797166,1756353032279,-151.0,0.00017789,2]
[381797167,1756353032290,-151.0,0.00017789,2]
[381797168,1756353032300,-151.0,0.00017789,2]
[381797169,1756353032309,-151.0,0.00017789,2]
[381797170,1756353032319,-151.0,0.00017789,2]
[381797171,1756353032329,-151.0,0.00017789,2]
[381797172,1756353032339,-151.0,0.00017789,2]
[381797173,1756353032348,-152.9549027,0.00017789,2]
[381797174,1756353032358,-200.0,0.00017789,2]
[381797175,1756353032368,-500.0,0.00017789,2]
[381797176,1756353032378,-250.0,0.00017789,2]
[381797177,1756353032388,-250.0,0.00017789,2]
[381797178,1756353032398,-250.0,0.00017789,2]
[381797179,1756353032408,-250.0,0.00017789,2]
[381797180,1756353032417,-250.0,0.00017789,2]
[381797181,1756353032428,-250.0,0.00017789,2]
[381797182,1756353032437,-265.83851529,0.00017789,2]
[381797183,1756353032447,-57836.19019468,0.0001779,2]
[381797184,1756353032457,-5369.715,0.00017799,2]
[381797185,1756353032467,-26918.50178203,0.000178,2]
[381797186,1756353032477,-2400.0,0.000178,6]
[381797187,1756353032487,-8777.82106123,0.00017801,2]
[381797188,1756353032497,-388.544,0.00017809,2]
[381797189,1756353032507,-862.9923575,0.00017815,2]
[381797190,1756353032517,-150.0,0.00017829,2]
[381797191,1756353032528,-150.0,0.00017829,2]
[381797192,1756353032538,-150.0,0.00017829,2]
[381797193,1756353032548,-150.0,0.00017829,2]
[381797194,1756353032559,-150.0,0.00017829,2]
[381797195,1756353032568,-500.0,0.00017829,2]
[381797196,1756353032578,-150.0,0.00017829,2]
[381797197,1756353032588,-200.0,0.00017829,2]
[381797198,1756353032598,-266.03950495,0.00017829,2]
[381797199,1756353032608,-151.46785595,0.00017829,2]
[381797200,1756353032618,-152.40640961,0.00017829,2]
[381797201,1756353032628,-150.0,0.00017829,2]
[381797202,1756353032638,-150.87355015,0.00017829,2]
[381797203,1756353032647,-150.0,0.00017829,2]
[381797204,1756353032658,-150.0,0.00017829,2]
[381797205,1756353032667,-150.44478872,0.00017829,2]
[381797206,1756353032678,-152.16215724,0.00017829,2]
[381797207,1756353032688,-150.0,0.00017829,2]
[381797208,1756353032698,-150.0,0.00017829,2]
[381797209,1756353032709,-150.0,0.00017829,2]
[381797210,1756353032720,-150.0,0.00017829,2]
[381797211,1756353032731,-150.0,0.00017829,2]
[381797212,1756353032742,-150.0,0.00017829,2]
[381797213,1756353032753,-150.0,0.00017829,2]
[381797214,1756353032765,-153.92108675,0.00017829,2]
[381797215,1756353032775,-150.56109404,0.00017829,2]
[381797216,1756353032786,-8777.82106123,0.00017831,2]
[381797217,1756353032796,-265.03526758,0.00017838,5]
[381797218,1756353032806,-400.0,0.00017839,2]
[381797219,1756353032817,-400.0,0.00017839,2]
[381797220,1756353032828,-400.0,0.00017839,2]
[381797221,1756353032839,-400.0,0.00017839,2]
[381797222,1756353032849,-508.79,0.00017839,2]
[381797223,1756353032859,-400.0,0.00017839,2]
[381797224,1756353033362,-400.0,0.00017839,2]
[381797225,1756353033382,-663.3,0.00017839,2]
[381797226,1756353033400,-400.0,0.00017839,2]
[381797227,1756353033410,-414.97,0.00017839,2]
[381797228,1756353033420,-400.0,0.00017839,2]
[381797229,1756353033429,-253.97649335,0.00017839,2]
[381797233,1756353037566,-241.70971113,0.00016699,2]
[381797234,1756353037575,-12998.07059312,0.00017839,2]
[381797235,1756353037587,-12386.41262207,0.00017839,2]
[381797236,1756353037595,-400.0,0.00017839,2]
[381797237,1756353037605,-1625.35,0.00017839,2]
[381797238,1756353037614,-400.0,0.00017839,2]
[381797239,1756353037624,-193.84403,0.00017839,2]
[381797240,1756353037634,-400.0,0.00017839,2]
[381797241,1756353037643,-151.0,0.00017839,2]
[381797242,1756353037653,-322.229175,0.00017839,2]
[381797243,1756353037663,-151.0,0.00017839,2]
[381797244,1756353037672,-151.0,0.00017839,2]
[381797245,1756353037682,-270.4,0.00017839,2]
[381797246,1756353037691,-400.0,0.00017839,2]
[381797247,1756353037700,-151.0,0.00017839,2]
[381797248,1756353037709,-348.6,0.00017839,2]
[381797249,1756353037719,-151.0,0.00017839,2]
[381797250,1756353037728,-315.31,0.00017839,2]
[381797251,1756353037737,-480.794574,0.00017839,2]
[381797252,1756353037746,-480.794574,0.00017839,2]
[381797253,1756353037755,-480.794574,0.00017839,2]
[381797254,1756353037764,-152.658679,0.00017839,2]
[381797255,1756353037773,-400.0,0.00017839,2]
[381797256,1756353037783,-400.0,0.00017839,2]
[381797257,1756353037792,-480.794574,0.00017839,2]
[381797258,1756353037802,-150.724341,0.00017839,2]
[381797259,1756353037811,-151.0,0.00017839,2]
[381797260,1756353037820,-151.0,0.00017839,2]
[381797261,1756353037830,-152.225799,0.00017839,2]
[381797262,1756353037839,-559.76,0.00017839,2]
[381797263,1756353037848,-37074.83420238,0.00017839,2]
[381797264,1756353037865,-618.18886431,0.00017839,2]
[381797446,1756353039655,-344350.0203702,0.00017839,2]
[381797448,1756353039667,-3557.25916507,0.00017839,2]
[381797450,1756353039679,-69714.19211754,0.00017839,2]
[381797452,1756353039688,-400.0,0.0001784,2]
[381797454,1756353039698,-400.0,0.0001784,2]
[381797456,1756353039708,-278.71295196,0.0001784,2]
[381797458,1756353039717,-400.0,0.0001784,2]
[381797460,1756353039726,-529.87,0.0001784,2]
[381797462,1756353039735,-500.0,0.0001784,2]
[381797464,1756353039744,-264.96,0.0001784,2]
[381797466,1756353039753,-400.0,0.0001784,2]
[381797468,1756353039764,-400.0,0.0001784,2]
[381797470,1756353039773,-400.0,0.0001784,2]
[381797472,1756353039782,-400.0,0.0001784,2]
[381797474,1756353039791,-170.35,0.0001784,2]
[381797476,1756353039800,-458.69,0.0001784,2]
[381797477,1756353039809,-400.0,0.0001784,2]
[381797479,1756353039818,-400.0,0.0001784,2]
[381797481,1756353039827,-287.59778733,0.0001784,2]
[381797483,1756353039836,-400.0,0.0001784,2]
[381797485,1756353039847,-400.0,0.0001784,2]
[381797487,1756353039857,-400.0,0.0001784,2]
[381797489,1756353039865,-392.00514584,0.0001784,2]
[381797491,1756353039875,-400.0,0.0001784,2]
[381797493,1756353039884,-400.0,0.0001784,2]
[381797495,1756353039893,-482.58,0.0001784,2]
[381797497,1756353039902,-372.13,0.0001784,2]
[381797499,1756353039911,-219.64,0.0001784,2]
[381797501,1756353039920,-400.0,0.0001784,2]
[381797504,1756353039929,-400.0,0.0001784,2]
[381797506,1756353039940,-400.0,0.0001784,2]
[381797507,1756353039949,-400.0,0.0001784,2]
[381797509,1756353039958,-400.0,0.0001784,2]
[381797511,1756353039967,-400.0,0.0001784,2]
[381797513,1756353039976,-400.0,0.0001784,2]
[381797515,1756353039986,-400.0,0.0001784,2]
[381797517,1756353039995,-400.0,0.0001784,2]
[381797519,1756353040005,-400.0,0.0001784,2]
[381797521,1756353040014,-446.83922108,0.0001784,2]
[381797523,1756353040023,-430.22,0.0001784,2]
[381797525,1756353040032,-400.0,0.0001784,2]
[381797527,1756353040041,-400.0,0.0001784,2]
[381797529,1756353040050,-400.0,0.0001784,2]
[381797531,1756353040059,-400.0,0.0001784,2]
[381797533,1756353040068,-400.0,0.0001784,2]
[381797535,1756353040077,-400.0,0.0001784,2]
[381797537,1756353040086,-400.0,0.0001784,2]
[381797539,1756353040095,-400.0,0.0001784,2]
[381797540,1756353040104,-400.0,0.0001784,2]
[381797542,1756353040114,-400.0,0.0001784,2]
[381797544,1756353040123,-400.0,0.0001784,2]
[381797546,1756353040132,-400.0,0.0001784,2]
[381797548,1756353040141,-400.0,0.0001784,2]
[381797550,1756353040150,-400.0,0.0001784,2]
[381797552,1756353040160,-400.0,0.0001784,2]
[381797554,1756353040169,-400.0,0.0001784,2]
[381797556,1756353040178,-400.0,0.0001784,2]
[381797558,1756353040193,-400.0,0.0001784,2]
[381797560,1756353040203,-400.0,0.0001784,2]
[381797562,1756353040212,-400.0,0.0001784,2]
[381797564,1756353040223,-400.0,0.0001784,2]
[381797566,1756353040233,-400.0,0.0001784,2]
[381797568,1756353040242,-222.59216601,0.0001784,2]
[381797570,1756353040251,-400.0,0.0001784,2]
[381797572,1756353040262,-400.0,0.0001784,2]
[381797574,1756353040272,-400.0,0.0001784,2]
[381797576,1756353040281,-400.0,0.0001784,2]
[381797578,1756353040290,-400.0,0.0001784,2]
[381797580,1756353040299,-208.04035505,0.0001784,2]
[381797582,1756353040309,-400.0,0.0001784,2]
[381797584,1756353040318,-400.0,0.0001784,2]
[381797585,1756353040327,-400.0,0.0001784,2]
[381797587,1756353040336,-400.0,0.0001784,2]
[381797589,1756353040346,-263.01849586,0.0001784,2]
[381797591,1756353040356,-400.0,0.0001784,2]
[381797593,1756353040365,-400.0,0.0001784,2]
[381797595,1756353040374,-400.0,0.0001784,2]
[381797597,1756353040383,-400.0,0.0001784,2]
[381797599,1756353040392,-400.0,0.0001784,2]
[381797601,1756353040401,-400.0,0.0001784,2]
[381797603,1756353040410,-400.0,0.0001784,2]
[381797605,1756353040420,-489.16,0.0001784,2]
[381797607,1756353040429,-490.26,0.0001784,2]
[381797609,1756353040439,-400.0,0.0001784,2]
[381797611,1756353040450,-400.0,0.0001784,2]
[381797613,1756353040459,-500.0,0.0001784,2]
[381797615,1756353040468,-400.0,0.0001784,2]
[381797617,1756353040478,-400.0,0.0001784,2]
[381797619,1756353040487,-400.0,0.0001784,2]
[381797621,1756353040497,-400.0,0.0001784,2]
[381797623,1756353040508,-400.0,0.0001784,2]
[381797624,1756353040517,-400.0,0.0001784,2]
[381797626,1756353040526,-400.0,0.0001784,2]
[381797628,1756353040537,-400.0,0.0001784,2]
[381797630,1756353040549,-380.08,0.0001784,2]
[381797632,1756353040558,-400.0,0.0001784,2]
[381797634,1756353040567,-387.41675659,0.0001784,2]
[381797636,1756353040577,-352.42591921,0.0001784,2]
[381797638,1756353040586,-400.0,0.0001784,2]
[381797640,1756353040595,-300.0,0.0001784,2]
[381797642,1756353040604,-400.0,0.0001784,2]
[381797644,1756353040613,-400.0,0.0001784,2]
[381797646,1756353040622,-400.0,0.0001784,2]
[381797648,1756353040631,-400.0,0.0001784,2]
[381797650,1756353040640,-178.42773722,0.0001784,2]
[381797652,1756353040649,-400.0,0.0001784,2]
[381797654,1756353040659,-503.71,0.0001784,2]
[381797656,1756353040669,-400.0,0.0001784,2]
[381797658,1756353040679,-400.0,0.0001784,2]
[381797660,1756353040689,-400.0,0.0001784,2]
[381797662,1756353040698,-400.0,0.0001784,2]
[381797664,1756353040707,-313.05060507,0.0001784,2]
[381797666,1756353040717,-514.85432974,0.0001784,2]
[381797668,1756353040726,-504.61695054,0.0001784,2]
[381797670,1756353040735,-400.0,0.0001784,2]
[381797671,1756353040745,-400.0,0.0001784,2]
[381797673,1756353040754,-400.0,0.0001784,2]
[381797675,1756353040763,-400.0,0.0001784,2]
[381797677,1756353040772,-400.0,0.0001784,2]
[381797679,1756353040781,-400.0,0.0001784,2]
[381797681,1756353040790,-400.0,0.0001784,2]
[381797683,1756353040803,-487.65693248,0.0001784,2]
[381797685,1756353040812,-150.0,0.0001784,2]
[381797687,1756353040821,-150.0,0.0001784,2]
[381797689,1756353040831,-400.0,0.0001784,2]
[381797691,1756353040840,-709.0,0.0001784,2]
[381797693,1756353040850,-531.51123363,0.0001784,2]
[381797695,1756353040859,-151.0,0.0001784,2]
[381797697,1756353040868,-376.6638061,0.0001784,2]
[381797699,1756353040877,-151.569906,0.0001784,2]
[381797701,1756353040886,-296.35165,0.0001784,2]
[381797703,1756353040895,-150.0,0.0001784,2]
[381797705,1756353040904,-151.978242,0.0001784,2]
[381797707,1756353040914,-150.0,0.0001784,2]
[381797709,1756353040923,-400.0,0.0001784,2]
[381797710,1756353040933,-500.0,0.0001784,2]
[381797712,1756353040942,-151.504544,0.0001784,2]
[381797714,1756353040951,-151.572381,0.0001784,2]
[381797716,1756353040962,-150.0,0.0001784,2]
[381797718,1756353040971,-151.0,0.0001784,2]
[381797720,1756353040981,-400.0,0.0001784,2]
[381797722,1756353040990,-354.22523591,0.0001784,2]
[381797724,1756353040999,-400.0,0.0001784,2]
[381797726,1756353041008,-77.97782501,0.0001784,2]
[381797730,1756353041035,-72.02217499,0.0001784,2]
[381797732,1756353041045,-400.0,0.0001784,2]
[381797734,1756353041054,-151.48504591,0.0001784,2]
[381797736,1756353041063,-151.37570736,0.0001784,2]
[381797738,1756353041073,-200.0,0.0001784,2]
[381797740,1756353041083,-400.0,0.0001784,2]
[381797742,1756353041092,-400.0,0.0001784,2]
[381797744,1756353041101,-152.179461,0.0001784,2]
[381797746,1756353041111,-400.0,0.0001784,2]
[381797747,1756353041120,-400.0,0.0001784,2]
[381797749,1756353041131,-400.0,0.0001784,2]
[381797751,1756353041140,-400.0,0.0001784,2]
[381797753,1756353041149,-400.0,0.0001784,2]
[381797754,1756353041158,-400.0,0.0001784,2]
[381797755,1756353041168,-151.0,0.0001784,2]
[381797756,1756353041177,-400.0,0.0001784,2]
[381797757,1756353041191,-152.230685,0.0001784,2]
[381797758,1756353041201,-151.0,0.0001784,2]
[381797759,1756353041212,-151.0,0.0001784,2]
[381797760,1756353041221,-151.0,0.0001784,2]
[381797761,1756353041231,-152.132073,0.0001784,2]
[381797762,1756353041240,-156.39543909,0.0001784,2]
[381797763,1756353041258,-243.60456091,0.0001784,2]
[381797764,1756353041268,-400.0,0.0001784,2]
[381797765,1756353041277,-151.0,0.0001784,2]
[381797766,1756353041287,-151.0,0.0001784,2]
[381797767,1756353041297,-152.053955,0.0001784,2]
[381797768,1756353041307,-151.0,0.0001784,2]
[381797769,1756353041316,-151.0,0.0001784,2]
[381797770,1756353041326,-151.0,0.0001784,2]
[381797771,1756353041335,-400.0,0.0001784,2]
[381797772,1756353041346,-151.0,0.0001784,2]
[381797795,1756353041562,-151.0,0.0001784,2]
[381797797,1756353041572,-151.0,0.0001784,2]
[381797799,1756353041582,-189.063565,0.0001784,2]
[381797801,1756353041591,-271.91677844,0.0001784,2]
[381797803,1756353041602,-400.0,0.0001784,2]
[381797805,1756353041612,-151.0,0.0001784,2]
[381797807,1756353041621,-479.87767616,0.0001784,2]
[381797809,1756353041631,-155.431106,0.0001784,2]
[381797811,1756353041641,-21.14366443,0.0001784,2]
[381797821,1756353041730,-234.22521844,0.0001784,2]
[381797871,1756353042430,-144.63111713,0.0001784,2]
[381797873,1756353042440,-152.708084,0.0001784,2]
[381797875,1756353042450,-400.0,0.0001784,2]
[381797877,1756353042459,-151.0,0.0001784,2]
[381797879,1756353042469,-151.896209,0.0001784,2]
[381797881,1756353042478,-400.0,0.0001784,2]
[381797884,1756353042497,-400.0,0.0001784,2]
[381797886,1756353042507,-151.0,0.0001784,2]
[381797888,1756353042517,-151.832345,0.0001784,2]
[381797890,1756353042526,-400.0,0.0001784,2]
[381797892,1756353042536,-400.0,0.0001784,2]
[381797894,1756353042545,-151.0,0.0001784,2]
[381797896,1756353042554,-151.0,0.0001784,2]
[381797898,1756353042564,-259.979016,0.0001784,2]
[381797900,1756353042574,-151.0,0.0001784,2]
[381797902,1756353042583,-284.31558017,0.0001784,2]
[381797904,1756353042593,-400.0,0.0001784,2]
[381797906,1756353042602,-151.0,0.0001784,2]
[381797908,1756353042612,-165.559251,0.0001784,2]
[381797910,1756353042622,-151.0,0.0001784,2]
[381797912,1756353042631,-400.0,0.0001784,2]
[381797914,1756353042640,-151.0,0.0001784,2]
[381797916,1756353042650,-151.0,0.0001784,2]
[381797918,1756353042659,-400.0,0.0001784,2]
[381797920,1756353042669,-1010.44,0.0001784,2]
[381797922,1756353042679,-151.0,0.0001784,2]
[381797924,1756353042688,-152.007086,0.0001784,2]
[381797926,1756353042698,-400.0,0.0001784,2]
[381797928,1756353042707,-153.334016,0.0001784,2]
[381797930,1756353042717,-151.0,0.0001784,2]
[381797932,1756353042726,-151.0,0.0001784,2]
[381797934,1756353042736,-158.865397,0.0001784,2]
[381797936,1756353042745,-468.02400391,0.0001784,2]
[381797938,1756353042755,-400.0,0.0001784,2]
[381797940,1756353042764,-207.149677,0.0001784,2]
[381797942,1756353042773,-400.0,0.0001784,2]
[381797944,1756353042783,-400.0,0.0001784,2]
[381797946,1756353042792,-400.0,0.0001784,2]
[381797948,1756353042801,-151.0,0.0001784,2]
[381797950,1756353042811,-151.0,0.0001784,2]
[381797952,1756353042821,-151.0,0.0001784,2]
[381797954,1756353042831,-151.0,0.0001784,2]
[381797956,1756353042841,-400.0,0.0001784,2]
[381797958,1756353042850,-400.0,0.0001784,2]
[381797960,1756353042860,-151.0,0.0001784,2]
[381797962,1756353042870,-247.501073,0.0001784,2]
[381797964,1756353042879,-400.0,0.0001784,2]
[381797966,1756353042888,-400.0,0.0001784,2]
[381797968,1756353042898,-400.0,0.0001784,2]
[381797970,1756353042907,-400.0,0.0001784,2]
[381797972,1756353042916,-400.0,0.0001784,2]
[381797974,1756353042926,-151.0,0.00017843,2]
[381797976,1756353042936,-237.837027,0.00017843,2]
[381797978,1756353042945,-151.0,0.00017843,2]
[381797980,1756353042955,-151.0,0.00017843,2]
[381797983,1756353042964,-151.0,0.00017843,2]
[381797986,1756353042974,-151.0,0.00017843,2]
[381797988,1756353042983,-163.285691,0.00017843,2]
[381797990,1756353042994,-151.0,0.00017843,2]
[381797992,1756353043003,-151.738642,0.00017843,2]
[381797994,1756353043013,-151.0,0.00017843,2]
[381797996,1756353043023,-155.785895,0.00017843,2]
[381797998,1756353043033,-151.0,0.00017843,2]
[381798000,1756353043043,-151.0,0.00017843,2]
[381798002,1756353043053,-157.314019,0.00017843,2]
[381798004,1756353043063,-151.454571,0.00017843,2]